Cogmind - Beta 13 @@@ ROGUE MODE // 2024.05.04 @ 04:23:48 Player: Steve the JanitorBot Result: Destroyed by as-08599 with Assembled Heavy Rifle Performance ------------- Evolutions (0) 0 Regions Visited (2) 400 Robots Destroyed (18) 90 Value Destroyed (389) 389 Prototype IDs (2) 40 Alien Tech Used (0) 0 Bonus (0) 0 TOTAL SCORE: 919 Bonus ------- None Cogmind --------- Core Integrity 0/250 Matter 300/300 Energy 100/100 System Corruption 7% Temperature Cool (72) Movement Core (350) Ox6 Location -10/Mines Parts ------- > --- POWER (1) -------- (None) > --- PROPULSION (2) --- (None) > --- UTILITY (2) ------ Large Storage Unit > --- WEAPON (2) ------- (None) > --- INVENTORY (15) --- Light Nuclear Core Aluminum Leg Aluminum Leg Heat Sink High-capacity Battery (250) High-capacity Battery (250) Small Matter Pod (50) ECM Suite Propulsion Shielding Medium Laser Particle Gun Light Assault Rifle Grenade Launcher Peak State ------------ > --- POWER ------------ Ion Engine > --- PROPULSION ------- Aluminum Leg Aluminum Leg > --- UTILITY ---------- Large Storage Unit Hacking Suite > --- WEAPON ----------- Medium Laser Small Laser > --- INVENTORY -------- Light Ion Engine Wheel High-capacity Battery High-capacity Battery Small Matter Pod ECM Suite Propulsion Shielding Particle Gun Beam Cannon Light Assault Rifle [Rating: 10] Favorites ----------- Power Ion Engine Engine Ion Engine Propulsion Aluminum Leg Leg Aluminum Leg Wheel Wheel Utility Large Storage Unit Storage Large Storage Unit Processor Transport Network Coupler Hackware Hacking Suite Weapon Medium Laser Energy Gun Medium Laser Energy Cannon Beam Cannon Ballistic Gun Assault Rifle Build | -11 -10 -10 ------- Run | Yrd Mat Min Slots Evolved . | . . . Power . | . . . Propulsion . | . . . Utility . | . . . Weapon . | . . . Parts Attached 20 | 5 8 7 Power 4 | 1 1 2 Engine 4 | 1 1 2 Core . | . . . Reactor . | . . . Propulsion 8 | 2 2 4 Treads . | . . . Leg 2 | . 2 . Wheel 6 | 2 . 4 Hover . | . . . Flight . | . . . Utility 3 | . 3 . Device . | . . . Storage 1 | . 1 . Processor 1 | . 1 . Hackware 1 | . 1 . Protection . | . . . Artifact . | . . . Weapon 5 | 2 2 1 Energy Gun 2 | . 2 . Energy Cannon 1 | . . 1 Ballistic Gun 2 | 2 . . Ballistic Cannon . | . . . Launcher . | . . . Special Weapon . | . . . Impact Weapon . | . . . Slashing Weapon . | . . . Piercing Weapon . | . . . Special Melee Weapon . | . . . Unidentified Prototypes . | . . . Parts Lost 11 | . 3 8 Power 3 | . 1 2 Propulsion 4 | . 1 3 Utility 1 | . . 1 Weapon 3 | . 1 2 Highest Loss Streak 8 | . 2 8 To Critical Strikes . | . . . Average Slot Usage (%) 96 | . 95 97 Engine 13 | . 13 12 Leg 16 | . 18 13 Wheel 10 | . 9 13 Storage 13 | . 13 14 Processor 5 | . 9 . Hackware 6 | . 2 13 Energy Gun 18 | . 16 21 Energy Cannon 2 | . . 5 Ballistic Gun 7 | . 11 . Naked Turns . | . . . Heaviest Build 29 | 6 28 29 Greatest Support 32 | 20 20 32 Greatest Overweight (x) 6 | . 2 6 Average Overweight (x) . | . . . Largest Inventory Capacity 15 | 5 15 15 Average Capacity 13 | 5 14 15 Most Carried 15 | 5 9 15 Average Carried 8 | 2 7 11 Final Capacity 15 | 5 15 15 Final Carried 13 | 3 8 13 Class Distribution -------------------- 87% | Mutant 12% | Scavenger-Mutant Dominant Class ---------------- Mutant | -10/Materials Mutant | -10/Mines Resources | -11 -10 -10 ----------- Run | Yrd Mat Min Matter Collected 559 | 302 207 50 Remotely . | . . . Salvage Created 724 | 71 284 369 Parts 30 | 2 19 9 Haulers Intercepted 1 | . 1 . Recyclers Shooed 1 | . . 1 Parts Field Recycled . | . . . Retrieved Matter . | . . . Parts Self-Destructed . | . . . Prevented . | . . . Kills | -11 -10 -10 ------- Run | Yrd Mat Min Combat Hostiles Destroyed 12 | 1 6 5 Guns 11 | 1 6 4 Cannons 1 | . . 1 Classes Destroyed 8 | 2 4 2 Worker 2 | 1 1 . Hauler 1 | . 1 . Recycler 2 | . . 2 Operator 1 | . 1 . Watcher 1 | . 1 . Swarmer 3 | . 3 . Grunt 8 | 1 3 4 Assembled 1 | . . 1 Best Kill Streak 4 | 1 4 2 Combat Bots Only 3 | 1 3 2 Max Kills in Single Turn 1 | 1 1 1 Gunslinging . | . . . Exploded . | . . . Melee . | . . . Uniques/NPCs Destroyed . | . . . Combat | -11 -10 -10 -------- Run | Yrd Mat Min Hostile Shots Fired 117 | 10 38 69 Missed 33 | 5 10 18 Damage Taken 1141 | 51 329 761 Core 256 | . 68 188 Absorbed by Shields . | . . . Core Remaining (%) 100 | 100 . . Volleys Fired 77 | 13 38 26 Largest 2 | 2 2 2 Hottest 100 | 40 90 100 Shots Fired 154 | 26 76 52 Gun 151 | 26 76 49 Cannon 3 | . . 3 Launcher . | . . . Special . | . . . Kinetic 70 | 26 44 . Thermal 84 | . 32 52 Explosive . | . . . Electromagnetic . | . . . Robot Hit Streak 6 | 4 6 6 Robot Miss Streak 5 | 2 4 5 Penetration Max . | . . . Secondary Targets 4 | . 2 2 Max Gunslinging Chain 1 | . 1 1 Shots Hit Robots 90 | 16 39 35 Core Hits 39 | 5 18 16 Critical Kills 1 | . 1 . Critical Parts Destroyed . | . . . Critical Strikes 6 | . 4 2 Burn 5 | . 3 2 Destroy 1 | . 1 . Melee Attacks . | . . . Impact . | . . . Slashing . | . . . Piercing . | . . . Sneak Attacks . | . . . Combat Hostiles . | . . . Follow-up Attacks . | . . . Damage Inflicted 1138 | 200 489 449 Guns 1102 | 200 489 413 Cannons 36 | . . 36 Explosions . | . . . Melee . | . . . Ramming . | . . . Kinetic 493 | 200 293 . Thermal 645 | . 196 449 Explosive . | . . . Electromagnetic . | . . . Impact . | . . . Slashing . | . . . Piercing . | . . . Highest Corruption 7 | . . 7 Average Corruption 7 | . . 7 Corruption Purged . | . . . Corruption Blocked . | . . . Overload Shots . | . . . Overflow Damage . | . . . Projectiles . | . . . Explosions . | . . . Melee . | . . . Knockbacks . | . . . Impact . | . . . Kinetic . | . . . Secondary . | . . . Self-Inflicted Damage . | . . . Shots . | . . . Rammed . | . . . Targets Rammed . | . . . Kicked . | . . . Crushed . | . . . Highest Temperature 290 | 12 269 290 Average Temperature 95 | 6 80 112 Received Heat Transfer 551 | 30 165 356 Siege Activations . | . . . Robots Corrupted . | . . . Combat Hostiles . | . . . Parts Fried . | . . . Impact Corruptions . | . . . Robots Melted . | . . . Combat Hostiles . | . . . Parts Melted 3 | . 2 1 Heat Transferred 2056 | . 754 1302 Parts Sabotaged . | . . . Parts Stolen . | . . . Parts Stripped . | . . . Power Chain Reactions . | . . . Alert | -11 -10 -10 ------- Run | Yrd Mat Min Peak Influence 150 | 26 150 140 Initial 16 | . 16 15 Average 84 | 11 81 117 Maximum Alert Level . | . . . Low Security (%) 100 | 100 100 100 Level 1 . | . . . Level 2 . | . . . Level 3 . | . . . Level 4 . | . . . Level 5 . | . . . High Security . | . . . Max Security . | . . . Squads Dispatched 2 | . 2 . Investigation . | . . . Extermination . | . . . Reinforcement 2 | . 2 . Assault . | . . . Garrison . | . . . Intercept . | . . . Searches Triggered . | . . . Construction Impeded . | . . . Haulers Reinforced . | . . . Active Scanning Responses . | . . . Cargo Convoy Interrupts . | . . . Stealth | -11 -10 -10 --------- Run | Yrd Mat Min Distress Signals 1 | . 1 . Communications Jammed . | . . . Distress Signals . | . . . Times Spotted 32 | 1 11 20 Peak Tracking Total 12 | 1 3 12 Tactical Retreats . | . . . Traps | -11 -10 -10 ------- Run | Yrd Mat Min Traps Triggered . | . . . Indirectly . | . . . Trap Hack Attempts . | . . . Triggered . | . . . Disarmed . | . . . Reprogrammed . | . . . Reused . | . . . Traps Extracted . | . . . Installed . | . . . Triggered . | . . . Machines | -11 -10 -10 ---------- Run | Yrd Mat Min Machines Disabled . | . . . Max in Single Turn . | . . . Machines Repaired . | . . . Machines Dismantled . | . . . Machines Sabotaged . | . . . Overloaded Fab Kills . | . . . Hacking | -11 -10 -10 --------- Run | Yrd Mat Min Machines Accessed 2 | . 2 . Terminals 2 | . 2 . Fabricators . | . . . Repair Stations . | . . . Recycling Units . | . . . Scanalyzers . | . . . Garrison Access . | . . . Total Hacks 4 | . 4 . Successful 2 | . 2 . Failed 2 | . 2 . Catastrophic 1 | . 1 . Database Lockouts . | . . . Manual . | . . . Terminals 4 | . 4 . Fabricators . | . . . Repair Stations . | . . . Recycling Units . | . . . Scanalyzers . | . . . Garrison Access . | . . . Terminal Hacks 2 | . 2 . Prototype ID Bank 1 | . 1 . Alert Level 1 | . 1 . Fabricator Hacks . | . . . Repair Station Hacks . | . . . Recycling Unit Hacks . | . . . Scanalyzer . | . . . Garrison Access Hacks . | . . . Unauthorized Hacks . | . . . Terminals . | . . . Fabricators . | . . . Repair Stations . | . . . Recycling Units . | . . . Scanalyzers . | . . . Garrison Access . | . . . Data Cores Recovered . | . . . Used . | . . . Hacking Detections 1 | . 1 . Full Trace Events . | . . . Feedback Events . | . . . Feedback Blocked . | . . . Robot Schematics Acquired . | . . . Robots Built . | . . . Authchips . | . . . Time . | . . . Total Robot Build Rating . | . . . Part Schematics Acquired . | . . . Parts Built . | . . . Authchips . | . . . Time . | . . . Total Part Build Rating . | . . . Parts Repaired . | . . . Time . | . . . Parts Recycled . | . . . Recycled Matter . | . . . Retrieved Matter . | . . . Retrieved Components . | . . . Parts Scanalyzed . | . . . Part Schematics Acquired . | . . . Parts Damaged . | . . . Bothacking | -11 -10 -10 ------------ Run | Yrd Mat Min Used RIF Installer . | . . . Robots Hacked . | . . . Non-combat . | . . . Combat . | . . . Robot Hacks Applied . | . . . Relay Couplers Released . | . . . Fabnet Peak Effective % . | . . . Robots Rewired . | . . . Allies Hacked . | . . . Hacks Repelled . | . . . Allies | -11 -10 -10 -------- Run | Yrd Mat Min Total Allies . | . . . Largest Group . | . . . Highest-Rated Group . | . . . Highest-Rated Ally . | . . . Total Orders . | . . . Ally Attacks . | . . . Total Damage . | . . . Kills . | . . . Allies Corrupted . | . . . Allies Melted . | . . . Intel | -11 -10 -10 ------- Run | Yrd Mat Min Robot Analysis Total . | . . . Derelict Logs Recovered . | . . . Drone Launches . | . . . Drone Recoveries . | . . . Exploration | -11 -10 -10 ------------- Run | Yrd Mat Min Turns Passed 1291 | 156 730 405 Spaces Moved 790 | 143 405 242 Core 26 | 24 . 2 Treads . | . . . Legs 290 | . 229 61 Wheels 474 | 119 176 179 Hover . | . . . Flight . | . . . Fastest Speed 50 | 50 80 90 Average Speed 127 | 74 148 125 Slowest Speed 350 | 80 190 350 Overloaded Moves . | . . . Propulsion Burnouts . | . . . Robots Hopped . | . . . Cave-ins Triggered . | . . . Exploration Rate (%) 40 | 5 59 56 Regions Visited 2 Branch Regions 1 Pre-discovered Areas . | . . . Known Exits Taken . | . . . Unknown Exits Taken 2 | 1 1 . Scrap Searched 1 | . . 1 Spaces Dug . | . . . Terrain Destroyed . | . . . Melee . | . . . Projectile . | . . . AOE . | . . . Terrain Rammed . | . . . Walls Destroyed . | . . . Machines Disabled . | . . . Actions | -11 -10 -10 --------- Run | Yrd Mat Min Total 919 | 168 462 289 Wait 5 | . . 5 Move 788 | 142 404 242 Hop . | . . . Pick Up 27 | 8 11 8 Fast Attach . | . . . Attach 13 | 5 6 2 Detach . | . . . Swap 7 | . 2 5 Drop 2 | . 1 1 Fire 77 | 13 38 26 Melee . | . . . Ram . | . . . Kick . | . . . Crush . | . . . Escape Stasis . | . . . Rewire . | . . . Trap . | . . . Miscellaneous . | . . . Route ------- -11/Scrapyard -10/Materials (discovered 3 exits: [*Mat x2] / [*Min]) -10/Mines History --------- Turn | Location | Event 2 | -11/Scrapyard | Met Revision 17 56 | -11/Scrapyard | Discovered new exit (range 8) 157 | -11/Scrapyard | Entered Materials 236 | -10/Materials | Discovered new exit (range 15) 307 | -10/Materials | Build established: Mutant 403 | -10/Materials | Discovered new exit (range 4) 724 | -10/Materials | Discovered new exit (range 12) 887 | -10/Materials | Entered Mines 1097 | -10/Mines | YI-UF0 nonchalantly dropped a Grenade Launcher on the ground 1247 | -10/Mines | Assembled infested the area 1265 | -10/Mines | Core integrity fell below 50% 1286 | -10/Mines | Core integrity fell below 20% 1292 | -10/Mines | Destroyed by as-08599 with Assembled Heavy Rifle Last Messages --------------- Ion Engine destroyed. as-03442 destroyed. as-40622 destroyed. as-65137 destroyed. as-84520 destroyed. as-75782 destroyed. as-78690 destroyed. Com. Wheel destroyed. as-41082 destroyed. D-53 Grenadier destroyed. Lgt. Ion Engine destroyed. Critical hit (Burn: +80). Hacking Suite destroyed. Sml. Laser destroyed. System corrupted by crushing effect (+5). System corrupted by crushing effect (+2). Wheel destroyed. Com. Wheel destroyed. Beam Cannon destroyed. Knocked back. Map ----- +----------------------------------------------------+ | # #?????????????????????????????????? | | #?????????????????????????????????? | | #??????????????????????????????????? | | # """ #??????????????????####?####???????? | | ## """ #?????????????????## ### ##??????? | | ?# """ #?????????????????# #??????? | | ## ##?????????????????# #???????? | | # ##???????????????????# ##??????? | | # ##?######????######### #??????? | | # ### ###### #??????? | | ## #??????? | | ?## ######## #??????? | | ??## #########??????## #??????? | | ???#### #???????????????### #??????? | | ??????## #?????????????????## ##?????? | | ???????## ##?????????????????## #?????? | | ????????######?????????????###### #?????? | | ??????????????????????????## ##?????? | | ??????????????????????????# ## #??????? | | ?????????????????????????## ##? #??????? | | ????????????????????????## #?? #??????? | | ????????????????####???## ##?? #??????? | | ???????????????## ##### ##??? #??????? | | ??????????????## ## ##???? #??????? | | ??????????????# ###????? #??????? | | ??????????????# """ @##??????? #??????? | | ??????????????# """ ##????????#??????? | | ??????????????## """ a ###?????????????? | | ???????????????## a ##????????????? | | # ???????????######## #???#????????? | | #???????????????????## ### #????????? | | ????????????????????????#a #????????? | | ????????????????????????# #????????? | | ????????????????????????# ### #????????? | | ????????????????????????# a###?? #????????? | | ???????????????????????## #????? #????????? | | ???????????????????????# #?????#????????? | | ???????????????????????# #?????????????? | | ???????????????????????# ????????????? | | ??????????????????????# a ??????????? | | ????????????????????? ?????????? | | ????????????????????#" ???????? | | ????????????????????#%# #??????? | | ????????????????????#"# #??????? | | ???????????????????? ?# % ##??????? | | ???????????????????##?# % " ##???????? | | ??????????????????????# ####????????? | | ??????????????????????## ##???????????? | | ???????????????????????? #????????????? | | ?????????????????????????? #????????????? | +----------------------------------------------------+ Best States ------------- Heat Dissipation 25 Energy Generation 10 Energy Capacity 250 Matter Stores 300 Matter Capacity 300 Sight Range 16 Terrain Scan Density 10 Evasion (%) 50 Offensive Hacking 10 Item Schematics ----------------- None Robot Schematics ------------------ None Fabricated ------------ Nothing Alien Tech Used ----------------- None Achievements -------------- Uninvited Guest Challenges ------------ None Game ------ Seed ShrapnelPhysicsAutohacker Manual? 0 Play Time 00:20:49 Cumulative 1.4 hours Start 2024.05.04 @ 03:56:13 End 2024.05.04 @ 04:23:48 Sessions 1 Manual Loads 0 Difficulty Rogue Special Mode None Game No. 2 Rogue 2 Adventurer 0 Explorer 0 Win Type - Total 0 Types 0/0/0/0/0/0/0/0/0 Lore% 0 Gallery% 3 Achievement% 2 Wizard Run 0 Options --------- Layout 1 ASCII 0 Keyboard 0 Movement Mouse Keybinds 0 Fullscreen 1 Font 24/Smallcaps Map View 50x35 Zoom Use 0% Tactical HUD 0 Map Filters NONE Filters NONE Steam 1 RUN: ba5fd3cc-c3f3-4179-ad70-a23c5f2e9429